[Event "SixDays Budapest January-IMB 2023"]
[Site "Budapest"]
[Date "2023.01.27"]
[Round "8.1"]
[White "Daroczi, Donat"]
[Black "Jakab, Attila"]
[Result "0-1"]
[ECO "B03"]
[WhiteElo "2148"]
[BlackElo "2308"]
[Annotator "TA"]
[PlyCount "76"]
[EventDate "2023.01.23"]
[EventType "tourn"]
[EventCountry "HUN"]
[SourceTitle "playchess.com"]
[Source "ChessBase"]
[SourceQuality "1"]
[TimeControl "5400+30"]

{[%evp 26,76,25,25,31,23,172,161,198,204,233,233,236,225,222,208,220,220,222,189,205,178,205,206,267,259,294,277,258,256,322,321,300,162,141,159,136,-128,-108,-114,-116,-400,-419,-408,-311,-312,-293,-274,-285,-558,-558,-543,-539]} 1. e4 {[%emt 0:00:03][%cal Be2e4,Be4e5][%mdl 32]} Nf6 {[%emt 0:26:29]} 2. e5 {[%emt 0:00:15]} Nd5 {[%emt 0:00:02]} 3. d4 d6 {[%emt 0:00:06]} 4. c4 {[%emt 0:00:17]} Nb6 {[%emt 0:00:04]} 5. exd6 {[%emt 0:00:05]} cxd6 {[%emt 0:00:19]} 6. Nc3 {[%emt 0:01:09]} g6 {[%emt 0:00:05]} 7. Be3 {[%emt 0:00:06]} Bg7 {[%emt 0:00:03]} 8. Rc1 {[%emt 0:00:10]} O-O {[%emt 0:00:05]} 9. b3 {[%emt 0:00:06]} e5 {[%emt 0:01:00]} 10. dxe5 {[%emt 0:00:21]} dxe5 {[%emt 0:00:04]} 11. Qxd8 {[%emt 0:00:15]} Rxd8 {[%emt 0:00:04]} 12. c5 {[%emt 0:00:07]} N6d7 {[%emt 0:00:49]} 13. Bc4 {[%emt 0:14:24]} Nc6 {[%emt 0:01:21]} 14. Nf3 {[%emt 0:07:43]} h6 {[%emt 0:00:11] Inhibits Ng5. B03: Alekhine's Defence: Four Pawns Attack.} 15. Ne4 {[%emt 0:14:33][%cal Bc3e4,Be4d6,Bd6f7][%mdl 32]} Nd4 {[%emt 0:03:07] [#]} (15... Na5 $11 {and Black is okay.}) 16. Nd6 $1 $18 {[%emt 0:05:38] [#]} Kh7 $146 {[%emt 0:09:20] White is clearly better.} ({Predecessor:} 16... Nxc5 17. Nxf7 Nd3+ 18. Kd2 Be6 19. Nxd8 Nxf3+ 20. gxf3 Bxc4 21. Rxc4 Rxd8 22. Ke2 b5 {1-0 Li,C (2622)-Garma,C (2347) WMSG Rapid Team 1st 2008 (6)}) 17. Nxf7 {[%emt 0:05:54]} (17. Bxf7 Nxc5 18. Rxc5 Nxf3+ 19. gxf3 Rxd6 $11) 17... Rf8 {[%emt 0:01:06]} 18. h4 {[%emt 0:11:43]} Nxf3+ {[%emt 0:03:49]} 19. gxf3 {[%emt 0:00:01][%cal Of7g5]} Nf6 {[%emt 0:00:23][%cal Bd7f6,Bf6h5,Bh5f4][%mdl 32]} 20. Nxe5 {[%emt 0:06:00]} Nh5 {[%emt 0:01:16] [#]} 21. Nf7 {[%emt 0:01:04]} Bd7 {[%emt 0:01:14]} 22. Nd6 {[%emt 0:08:27]} Bc6 {[%emt 0:00:45]} 23. Rg1 {[%emt 0:01:15]} Nf4 {[%emt 0:02:36]} 24. Rg4 {[%emt 0:05:57]} Nd5 {[%emt 0:00:57]} 25. Bd3 {[%emt 0:01:17]} Nxe3 {[%emt 0:00:52]} 26. Bxg6+ {[%emt 0:00:24]} Kh8 {[%emt 0:00:27]} 27. fxe3 {[%emt 0:00:12]} Rxf3 {[%emt 0:00:39]} 28. Ke2 {[%emt 0:03:03]} Raf8 {[%emt 0:00:22] Dodges Bf5} 29. Rcg1 {[%emt 0:00:57]} (29. Be4 $142) 29... Rf2+ {[%emt 0:01:34]} 30. Kd3 {[%emt 0:00:14] aiming for Be4.} Bf3 {[%emt 0:00:24] Prevents Be4} 31. Nf7+ $2 {[%emt 0:12:12][%mdl 8192] [#]} (31. Rf4 $16) 31... Rxf7 $17 {[%emt 0:01:08][%mdl 512] Black is more active.} 32. Bxf7 {[%emt 0:00:58]} Bxg4 {[%emt 0:00:12][%mdl 64] Discovered Attack. This pair of bishops is nice.} 33. Bd5 $2 {[%emt 0:00:17][%mdl 8192]} (33. Rxg4 $17 Rxf7 34. Rg6) 33... Be2+ $19 {[%emt 0:00:36]} 34. Kd2 {[%emt 0:00:04]} Bf3+ {[%emt 0:02:24]} 35. Ke1 {[%emt 0:00:18]} Re2+ {[%emt 0:00:06]} (35... Rxa2 36. Bxf3 Bc3+ 37. Kf1 $11) 36. Kf1 {[%emt 0:00:08]} Rxe3 {[%emt 0:00:02]} ({Inferior is} 36... Bxd5 37. Kxe2 Bf8 38. Rf1 $15) 37. Kf2 $2 {[%emt 0:00:29] [#]} (37. Rg3 {was necessary.} Be2+ {[%mdl 64] Discovered Attack} 38. Kf2) 37... Bd4 $1 {[%emt 0:01:14] ( -> ...Rd3+)} 38. Bxf3 {[%emt 0:01:20]} Rc3+ {[%emt 0:00:04][%mdl 64] Discovered Attack.   Weighted Error Value: White=0.56/Black=0.25 (precise)} ({Weaker is} 38... Bxc5 39. Rd1 $15) 0-1

[Event "SixDays Budapest January-IMB 2023"]
[Site "Budapest"]
[Date "2023.01.27"]
[Round "8.2"]
[White "Farkas, Gabor"]
[Black "Papp, Levente"]
[Result "1-0"]
[ECO "D30"]
[WhiteElo "2321"]
[BlackElo "2391"]
[Annotator "TA"]
[PlyCount "77"]
[EventDate "2023.01.23"]
[EventType "tourn"]
[EventCountry "HUN"]
[SourceTitle "playchess.com"]
[Source "ChessBase"]
[SourceQuality "1"]
[TimeControl "5400+30"]

{[%evp 12,77,0,0,0,0,0,-71,0,0,0,0,45,45,86,77,85,95,143,70,86,91,88,45,42,54,85,-7,73,75,78,71,73,78,81,75,245,237,376,375,383,380,377,380,368,263,721,611,799,797,710,450,502,472,983,954,5831,5583,29986,29987,29988,29989,29990,29984,29984,29985,29989,29990]} 1. d4 {[%emt 0:02:06]} e6 {[%emt 0:00:43]} 2. Nf3 {[%emt 0:01:38]} Nf6 {[%emt 0:00:24]} 3. c4 {[%emt 0:00:14]} d5 {[%emt 0:00:13]} 4. Bg5 {[%emt 0:00:16]} h6 {[%emt 0:03:08]} 5. Bh4 {[%emt 0:01:29]} Bb4+ {[%emt 0:10:57]} 6. Nc3 {[%emt 0:02:47]} g5 {[%emt 0:00:58]} 7. Bg3 {[%emt 0:00:18]} Ne4 {[%emt 0:00:29] D38: Queen's Gambit Declined: Ragozin Defence (4 Nf3 Bb4).} 8. Qc2 {[%emt 0:21:11]} h5 {[%emt 0:03:12]} 9. Nd2 {[%emt 0:05:05] [#]} (9. h3 $11 {remains equal.}) 9... Bxc3 $146 {[%emt 0:09:28]} (9... Nxd2 $17 10. Kxd2 (10. Qxd2 $2 h4 $19) 10... Nc6) ({Predecessor:} 9... h4 10. Ndxe4 dxe4 11. Be5 Bxc3+ 12. bxc3 f6 13. Qxe4 fxe5 14. Qg6+ Kf8 15. Rd1 Nd7 {0-1 Aulin Jansson,J (2204)-Mansoor,A (1990) NOR-chT Elite 2223 2022 (2.46)}) 10. bxc3 $11 {[%emt 0:00:08]} Nxd2 {[%emt 0:10:18]} 11. Kxd2 {[%emt 0:00:18]} dxc4 {[%emt 0:02:49]} (11... h4 $5 {[%cal Rh4g3]} 12. Be5 Rh6 $11) 12. h4 {[%emt 0:01:10]} c5 {[%emt 0:22:16]} 13. e3 {[%emt 0:00:07]} Nc6 {[%emt 0:07:16][%cal Rc5d4] Wards off Be5} 14. Bxc4 {[%emt 0:02:43][%cal Bf1c4,Bc4d5,Bd5e4,Be4d3,Bd3e2][%mdl 32]} Qa5 {[%emt 0:00:15]} (14... Bd7 $142) 15. d5 {[%emt 0:01:59]} (15. Qe4 $16) 15... exd5 $14 {[%emt 0:00:49]} 16. Bxd5 {[%emt 0:00:40]} Ne7 {[%emt 0:02:01]} 17. Be4 {[%emt 0:03:14] White is more active. This pair of bishops is nice.} (17. Bc4 {looks sharper.} Bf5 18. e4 Rd8+ 19. Ke2) 17... f5 {[%emt 0:07:14]} 18. Bd3 $36 {[%emt 0:02:05][%mdl 2048] White has the initiative.} Be6 {[%emt 0:04:34] [#] Threatens to win with ...0-0-0.} 19. Ke1 {[%emt 0:03:02]} (19. hxg5 $16 {Hoping for Be5.} Rd8 20. Ke1) 19... O-O-O {[%emt 0:01:45]} (19... g4 $11) 20. hxg5 $16 {[%emt 0:01:00]} h4 {[%emt 0:02:35]} 21. Rxh4 {[%emt 0:06:27]} (21. Bxh4 $6 c4 22. Be2 f4 $15) 21... Rxh4 {[%emt 0:02:34]} 22. Bxh4 {[%emt 0:00:01]} c4 {[%emt 0:01:04]} 23. Be2 {[%emt 0:01:26][%cal Og5g6]} Ng6 $2 {[%emt 0:00:37] Black cannot hold the game after this.} (23... f4 $16 {was called for.}) 24. Bg3 $18 {[%emt 0:00:35]} f4 {[%emt 0:05:12]} (24... Ne5 $142 25. Kf1 Rd7) 25. Bxf4 {[%emt 0:01:00]} (25. Qxg6 Qxc3+ 26. Kf1 Qxa1+) (25. exf4 Bf5 26. Qb2 Rh8 $18) 25... Bf5 {[%emt 0:00:33]} 26. Qb2 {[%emt 0:00:45]} Nxf4 {[%emt 0:01:12]} 27. exf4 {[%emt 0:00:05]} Bd3 {[%emt 0:00:48] And now ...Re8 would win.} 28. Kf1 {[%emt 0:05:19] aiming for Kg1.} Bxe2+ $2 {[%emt 0:00:33]} (28... Qf5 29. Qd2 Rh8) 29. Qxe2 {[%emt 0:01:10]} ({Inferior is} 29. Kxe2 Qf5 30. f3 (30. Kf1 Rh8 $11) 30... Qxf4 $11) 29... Qxc3 {[%emt 0:00:07][%mdl 4096] Endgame KQR-KQR} 30. Re1 {[%emt 0:00:55]} Qd4 {[%emt 0:00:48]} 31. Qe3 {[%emt 0:02:37] Strongly threatening Qxd4.} Qxe3 {[%emt 0:00:31]} 32. Rxe3 {[%emt 0:00:32] f5 would be deadly. KR-KR} b5 {[%emt 0:00:21]} (32... Rg8 $142 33. Re7 Rg6) 33. f5 {[%emt 0:00:46][%cal Bf4f5,Bf5f6,Bf6f7][%mdl 32]} Rd7 {[%emt 0:00:19]} 34. f6 {[%emt 0:00:36] White wants to mate with g6.} b4 {[%emt 0:00:12]} 35. g6 {[%emt 0:00:54] White mates.} c3 {[%emt 0:00:17]} 36. f7 {[%emt 0:00:30]} Rd8 {[%emt 0:00:15]} 37. Re8 {[%emt 0:01:04]} c2 {[%emt 0:00:05]} 38. Rxd8+ {[%emt 0:00:18]} (38. f8=R $2 {is the wrong capture.} c1=Q+ 39. Re1 Qc4+ 40. Kg1 Rxf8 $19) 38... Kb7 {[%emt 0:00:04] [#]} 39. Rc8 $3 {[%emt 0:00:05] Weighted Error Value: White=0.36/Black=0.45} 1-0

[Event "SixDays Budapest January-IMB 2023"]
[Site "Budapest"]
[Date "2023.01.27"]
[Round "8.3"]
[White "Semprun Martinez, Fernando"]
[Black "To, Nhat Minh"]
[Result "1/2-1/2"]
[ECO "D79"]
[WhiteElo "2106"]
[BlackElo "2335"]
[Annotator "TA"]
[PlyCount "163"]
[EventDate "2023.01.23"]
[EventType "tourn"]
[EventCountry "HUN"]
[SourceTitle "playchess.com"]
[Source "ChessBase"]
[SourceQuality "1"]
[TimeControl "5400+30"]

{[%evp 17,163,3,8,3,0,-40,-10,-59,-51,-43,-14,-8,-15,-8,-15,-85,-85,-86,-72,-76,-86,-79,-50,-50,-50,-50,-50,-50,-50,-50,-50,-50,-50,-50,-50,-64,-64,-64,-45,-64,-64,-64,-36,-36,-8,-8,-8,-8,-8,-8,-8,-8,-8,-8,0,0,0,0,0,0,0,0,0,0,0,0,0,0,0,0,0,0,0,0,0,0,0,0,0,-8,-8,-8,0,0,0,0,-8,-8,-8,-8,0,0,0,0,0,0,0,0,0,-8,-8,-8,-8,-8,-8,-8,-8,-8,-8,-8,-8,-8,-8,-8,-8,-8,-8,-274,-8,-8,-8,-8,-8,-8,-8,-8,-8,-8,-8,-8,-8,-8,-8,-8,-8,-8,-8,-8,-8,-8,-8,-8,-8,-8,-8,-125,-234,-284]} 1. Nf3 {[%emt 0:00:18]} d5 {[%emt 0:00:24]} 2. g3 {[%emt 0:00:02]} g6 {[%emt 0:01:21]} 3. d4 {[%emt 0:00:40]} Nf6 {[%emt 0:00:14]} 4. Bg2 {[%emt 0:00:03]} Bg7 {[%emt 0:00:06]} 5. O-O {[%emt 0:00:35]} O-O {[%emt 0:00:06]} 6. c4 {[%emt 0:00:10]} c6 {[%emt 0:00:12]} 7. cxd5 {[%emt 0:00:02]} cxd5 {[%emt 0:00:08]} 8. Ne5 {[%emt 0:00:03]} Ng4 {[%emt 0:01:47]} 9. Nxg4 {[%emt 0:00:39] 9.Bf4 gains popularity.} Bxg4 {[%emt 0:00:05]} 10. Nc3 {[%emt 0:00:33] D79: Fianchetto Grünfeld: Symmetrical Variation (6 0-0 c6 7 cxd5 cxd5).} Nc6 {[%emt 0:00:42][%cal Bb8c6,Bc6d4,Bd4e2][%mdl 32]} 11. Bxd5 {[%emt 0:10:28]} Nxd4 {[%emt 0:01:53]} 12. Bxb7 {[%emt 0:05:19]} (12. Be3 $11 e5 13. f3) 12... Rb8 $15 {[%emt 0:01:32]} 13. Bg2 {[%emt 0:02:09]} Nxe2+ {[%emt 0:01:57][%mdl 64] [#] Discovered Attack, Deflection} 14. Nxe2 {[%emt 0:00:33]} Qxd1 {[%emt 0:00:06][%mdl 64] Remove Defender} (14... Bxb2 $2 15. Bxb2 Qxd1 16. Rfxd1 $18 (16. Raxd1 Bxe2 17. Ba3 Bxd1 $18)) 15. Rxd1 {[%emt 0:00:07] And now Rd2 would win.} Bxe2 {[%emt 0:00:03] [#]} 16. Re1 $146 {[%emt 0:01:15]} (16. Rd7 $11 {keeps the balance.}) ({Predecessor:} 16. Rd7 Rfd8 17. Rxd8+ Rxd8 18. Be3 Bxb2 19. Re1 Bc4 20. Bxa7 Bxa2 21. Bb6 Rb8 22. Bc7 {½-½ Aggelis,N (2281)-Goncalves,D (2282) Titled Tuesday intern op 28th Jun Late blitz 2022 (7)}) 16... Bxb2 $17 {[%emt 0:01:15]} 17. Rb1 {[%emt 0:02:28]} Bxc1 {[%emt 0:00:57][%mdl 64] Remove Defender} 18. Rbxc1 {[%emt 0:06:41]} Rb2 {[%emt 0:00:31]} 19. Rc7 {[%emt 0:00:37][%csl LRa7,LRe7]} Rxa2 {[%emt 0:00:45]} 20. Bd5 $1 {[%emt 0:00:55]} Rd2 {[%emt 0:00:36]} 21. Rxe7 {[%emt 0:02:46]} Rxd5 {[%emt 0:05:38]} 22. R1xe2 $15 {[%emt 0:00:00][%mdl 4096] Endgame KRR-KRR} Ra8 {[%emt 0:02:27]} 23. Rb7 {[%emt 0:03:34]} a5 {[%emt 0:02:51]} 24. Ree7 {[%emt 0:00:06]} Rf5 {[%emt 0:00:12]} 25. h4 {[%emt 0:02:09]} h5 {[%emt 0:00:39]} 26. Ra7 {[%emt 0:00:47]} Rxa7 {[%emt 0:03:06]} 27. Rxa7 {[%emt 0:00:01] KR-KR} Kg7 {[%emt 0:01:15]} 28. Kg2 {[%emt 0:04:43]} Rc5 {[%emt 0:02:34]} 29. f3 {[%emt 0:00:42]} Kf6 {[%emt 0:07:08]} 30. g4 {[%emt 0:00:02]} hxg4 {[%emt 0:14:11]} 31. fxg4 {[%emt 0:00:07]} Rc4 {[%emt 0:00:13]} 32. Ra6+ {[%emt 0:09:13]} Kg7 {[%emt 0:02:38]} 33. Kg3 {[%emt 0:00:44]} a4 {[%emt 0:05:13]} 34. Kf3 {[%emt 0:00:54]} Rc3+ {[%emt 0:00:22]} 35. Kf4 {[%emt 0:00:34]} Ra3 {[%emt 0:02:13]} 36. g5 {[%emt 0:09:00]} Ra1 {[%emt 0:00:11]} 37. Kg3 {[%emt 0:00:31]} a3 {[%emt 0:00:15]} 38. Ra7 {[%emt 0:00:11]} a2 {[%emt 0:02:15]} 39. Kg2 {[%emt 0:00:01] Dodges Rg1+} Kf8 {[%emt 0:00:40]} (39... Kg8 $5 40. Ra8+ $8 Kh7 $11) 40. Kh2 {[%emt 0:00:45]} Ke8 {[%emt 0:00:06]} (40... Kg8 $5 41. Ra8+ $8 Kg7 $11) 41. Kg2 {[%emt 0:00:04]} Kd8 {[%emt 0:00:05]} 42. Kh2 {[%emt 0:00:00]} Kc8 {[%emt 0:00:05]} 43. Kg2 {[%emt 0:00:02]} Kb8 {[%emt 0:00:05]} 44. Ra4 {[%emt 0:00:15]} Kc7 {[%emt 0:00:22]} 45. Ra8 {[%emt 0:00:16]} Kb6 {[%emt 0:00:25]} 46. Ra3 {[%emt 0:00:02]} Kc5 {[%emt 0:00:14]} 47. Ra7 $1 {[%emt 0:00:06]} Kd4 {[%emt 0:00:51]} 48. Rd7+ {[%emt 0:03:04]} Ke5 {[%emt 0:01:44]} 49. Re7+ $1 {[%emt 0:00:02]} Kd6 {[%emt 0:00:51]} 50. Ra7 {[%emt 0:00:02]} Ke6 {[%emt 0:00:20]} 51. Kh2 {[%emt 0:00:21]} Kd5 {[%emt 0:01:23]} 52. Kg2 {[%emt 0:00:19]} Kc4 {[%emt 0:00:52]} 53. Rc7+ {[%emt 0:00:14]} Kb5 {[%emt 0:00:16]} 54. Ra7 $1 {[%emt 0:00:07]} Kb6 {[%emt 0:00:15]} 55. Ra3 {[%emt 0:00:04]} Kb7 {[%emt 0:00:26]} 56. Rb3+ {[%emt 0:00:35]} Kc7 {[%emt 0:00:20][%cal Oa1g1]} 57. Ra3 {[%emt 0:00:06]} Kd6 {[%emt 0:00:18]} 58. Ra6+ {[%emt 0:00:24]} Ke5 {[%emt 0:00:12]} 59. Ra7 {[%emt 0:00:02]} Ke4 {[%emt 0:00:22]} (59... f5 $5 60. h5 $8 gxh5 $11) 60. Re7+ {[%emt 0:00:34]} Kd3 {[%emt 0:00:27]} 61. Rd7+ $1 {[%emt 0:00:02]} Ke2 {[%emt 0:00:18][%cal Oa1g1]} 62. Re7+ $1 {[%emt 0:00:01]} Kd2 {[%emt 0:00:18]} 63. Rd7+ {[%emt 0:00:45]} Ke3 {[%emt 0:01:11][%cal Oa1g1]} 64. Re7+ $1 {[%emt 0:00:01]} Kf4 {[%emt 0:02:49]} 65. Rxf7+ {[%emt 0:00:20]} Kg4 {[%emt 0:00:06][%cal Oa1b1]} 66. Ra7 {[%emt 0:00:02]} Kxh4 {[%emt 0:00:28]} 67. Ra8 $2 {[%emt 0:00:01][%mdl 8192] [#]} (67. Ra4+ $11 {and White is okay.} Kxg5 68. Ra8) 67... Kxg5 $2 {[%emt 0:00:17]} (67... Kg4 $1 $19 {[%cal Og4f4]} 68. Ra5 Kh4) 68. Ra7 {[%emt 0:00:09]} Kf5 {[%emt 0:00:36]} 69. Ra8 {[%emt 0:00:13]} Ke5 {[%emt 0:00:06]} 70. Ra5+ {[%emt 0:00:36]} Kd6 {[%emt 0:00:05]} 71. Ra6+ {[%emt 0:00:04]} Kc5 {[%emt 0:00:03]} 72. Ra8 {[%emt 0:00:13]} Kb4 {[%emt 0:00:04]} 73. Rb8+ {[%emt 0:00:05]} Ka5 {[%emt 0:00:06][%cal Oa1g1]} 74. Ra8+ {[%emt 0:00:01]} Kb6 {[%emt 0:00:04]} 75. Ra3 {[%emt 0:00:19]} g5 {[%emt 0:00:12]} 76. Ra8 {[%emt 0:00:05]} Kb7 {[%emt 0:00:07]} 77. Ra3 {[%emt 0:00:02]} Kc6 {[%emt 0:00:05]} 78. Ra8 {[%emt 0:00:59]} Kd5 {[%emt 0:00:07]} 79. Ra5+ {[%emt 0:00:07]} Ke4 {[%emt 0:00:06]} 80. Ra8 {[%emt 0:00:23]} Kd3 {[%emt 0:00:07]} 81. Rd8+ {[%emt 0:00:17]} (81. Ra3+ $11 Kd4 82. Ra8) 81... Ke3 {[%emt 0:00:08]} (81... Kc4 $17 {( -> ...Rb1)} 82. Ra8 Kd3 83. Rd8+ Ke4) 82. Ra8 {[%emt 0:01:27][%mdl 32768] Weighted Error Value: White=0.06 (flawless) /Black=0.03 (flawless) . An unexpected result.} 1/2-1/2

[Event "SixDays Budapest January-IMB 2023"]
[Site "Budapest"]
[Date "2023.01.27"]
[Round "8.4"]
[White "Urhegyi, Marton"]
[Black "Apol, Luitjen Akselsson"]
[Result "1-0"]
[ECO "B94"]
[WhiteElo "2253"]
[BlackElo "2215"]
[Annotator "TA"]
[PlyCount "127"]
[EventDate "2023.01.23"]
[EventType "tourn"]
[EventCountry "HUN"]
[SourceTitle "playchess.com"]
[Source "ChessBase"]
[SourceQuality "1"]
[TimeControl "5400+30"]

{[%evp 16,127,29,25,68,59,79,77,57,63,80,76,101,101,151,143,131,68,79,72,34,0,0,17,207,45,256,214,189,90,117,82,131,133,583,-37,-34,-29,-43,-33,-10,-33,68,64,68,80,60,11,16,0,0,0,0,0,71,0,0,0,0,0,0,0,29,-204,39,13,36,0,976,1585,1718,1316,1287,1307,1005,943,4614,4132,4133,1760,2694,2103,648,635,29986,29987,29987,29988,29986,29986,29982,29968,29968,29967,1322,1213,29970,29971,29975,29976,29980,29977,29976,29974,29972,5600,29979,29980,29985,29986,29986,29983,29984,29985]} 1. e4 {[%emt 0:02:48]} c5 {[%emt 0:01:40]} 2. Nf3 {[%emt 0:00:22]} d6 {[%emt 0:00:19]} 3. d4 {[%emt 0:00:07]} cxd4 {[%emt 0:00:19]} 4. Nxd4 {[%emt 0:00:06]} Nf6 {[%emt 0:00:26]} 5. Nc3 {[%emt 0:00:11]} a6 {[%emt 0:00:22]} 6. Bg5 {[%emt 0:00:51]} Nbd7 {[%emt 0:00:37]} 7. Bc4 {[%emt 0:01:06]} Qa5 {[%emt 0:03:45]} 8. Qd2 {[%emt 0:01:24]} e6 {[%emt 0:00:43]} 9. O-O-O {[%emt 0:00:48]} Be7 {[%emt 0:00:23] B94: Sicilian Najdorf: 6 Bg5 Nbd7.} 10. Rhe1 {[%emt 0:00:51]} h6 {[%emt 0:02:29]} 11. Bxf6 {[%emt 0:00:12]} Nxf6 {[%emt 0:00:42] White is better.} 12. f4 {[%emt 0:00:53]} (12. Kb1 {is interesting.} O-O 13. f4 e5 14. Nf5) 12... Qc7 {[%emt 0:03:45]} 13. Bb3 {[%emt 0:02:45][%cal Og2g4] White is more active.} O-O {[%emt 0:10:02]} 14. g4 {[%emt 0:04:03] [#]} Nd7 $146 {[%emt 0:12:39]} (14... Nxg4 $2 15. Rg1 $18) (14... b5 $142) ({Predecessor:} 14... Nxg4 15. Qg2 e5 16. Nf5 Bxf5 17. exf5 h5 18. Rg1 Bf6 19. h3 Ne3 20. Qg6 {1-0 Mateo Lopez,R-Roca,R ESP corr Spain 1986}) 15. Kb1 {[%emt 0:25:57]} Nc5 {[%emt 0:02:40]} 16. g5 {[%emt 0:01:35]} (16. h4 $1 $16) 16... hxg5 {[%emt 0:01:48]} 17. fxg5 {[%emt 0:03:56]} b5 {[%emt 0:05:47]} 18. Qg2 {[%emt 0:10:56]} b4 {[%emt 0:04:30]} 19. Nce2 {[%emt 0:02:20]} Bb7 $2 {[%emt 0:11:05]} (19... Nxb3 $11 20. cxb3 g6) 20. Ng3 $2 {[%emt 0:21:51]} (20. g6 $18 Bxe4 21. Nxe6 (21. gxf7+ Rxf7 22. Qg4 Qc8 $11) 21... Bxg2 22. Nxc7 Nxb3 23. Nxa8 (23. axb3 Ra7 $11) (23. cxb3 Be4+ 24. Ka1 Ra7 $15)) 20... g6 $2 {[%emt 0:04:37]} ({Black should play} 20... Nxb3 $1 $14 21. cxb3 Qc5) 21. h4 $18 {[%emt 0:01:51]} Nxb3 {[%emt 0:05:11]} 22. cxb3 {[%emt 0:02:29]} (22. axb3 $18 {and White stays clearly on top. Black must now prevent Rh1.} a5 23. h5) 22... Qc5 $16 {[%emt 0:07:18]} 23. h5 {[%emt 0:01:30] And now Qh3 would win.} Qe5 {[%emt 0:03:09]} (23... Bxg5 24. Qh3 Bf6 25. hxg6 fxg6 26. Qxe6+ (26. Rh1 Rf7 $15) 26... Rf7 27. Ngf5 (27. Rf1 Qe5 $11) 27... gxf5 28. Nxf5 $18) ({Better is} 23... Qxg5 24. hxg6 Qxg6) 24. Qh3 {[%emt 0:02:22]} Kg7 $2 {[%emt 0:02:15][%mdl 8192] [#]} (24... gxh5 $2 25. Nxh5 Rfc8 26. Ka1 $18) (24... Rac8 $16 {is more resistant.} 25. hxg6 fxg6) 25. Ndf5+ $2 {[%emt 0:03:10]} gxf5 $15 {[%emt 0:03:26]} 26. exf5 {[%emt 0:00:12][%mdl 64] Discovered Attack} Qf4 {[%emt 0:00:26]} 27. f6+ {[%emt 0:02:15] [#]} (27. fxe6 $2 Qxg5 28. Nf5+ Kh8 29. Nxe7 Qxe7 $19) 27... Bxf6 $1 {[%emt 0:00:08]} 28. gxf6+ {[%emt 0:01:54]} Qxf6 {[%emt 0:00:02]} ({Black should try} 28... Kh7 $15) 29. Qg4+ $14 {[%emt 0:01:36]} (29. Rxd6 Kh8 $11) 29... Kh8 {[%emt 0:01:17] Hoping for ...Bf3.} 30. Qxb4 {[%emt 0:01:57]} (30. Rxd6 a5 31. Rd2 Rg8 $15) 30... Bd5 {[%emt 0:00:53]} 31. Rf1 {[%emt 0:01:15]} (31. Ne4 $14 Qf5 32. Ka1 Bxe4 33. Rxe4) 31... Qe5 $11 {[%emt 0:01:00] [#]} 32. Qd2 $1 {[%emt 0:01:01]} Kh7 {[%emt 0:03:46] Inhibits Qh6+.} (32... Qxg3 33. Qh6+ Kg8 34. Rg1 $16) 33. Qd3+ {[%emt 0:01:25]} f5 $1 {[%emt 0:01:46]} 34. Ka1 {[%emt 0:00:25]} a5 {[%emt 0:02:46] [#]} (34... Be4 $1 $11 35. Qxd6 Qxd6 36. Rxd6 Bd5) 35. Rfe1 {[%emt 0:01:04]} (35. Nxf5 Be4 36. Qxd6 Rxf5 37. Qd7+ Kh6 38. Rxf5 Qxf5 39. Qd2+ Qg5 $17) (35. Rde1 $1 $16 {[%cal Re1e5]} Be4 36. Nxe4 fxe4 37. Rxe4 Rxf1+ 38. Re1+ Qf5 39. Qxf1) 35... Qf6 {[%emt 0:01:01]} 36. Ne2 $36 {[%emt 0:00:22][%mdl 2048] White is pushing.} a4 {[%emt 0:02:39]} 37. bxa4 {[%emt 0:00:24]} Rxa4 {[%emt 0:00:39]} 38. Nc3 {[%emt 0:00:38]} Ra5 {[%emt 0:00:33][%cal Od5a2] Strongly threatening ...Bxa2!} (38... Rxa2+ $5 39. Nxa2 Ra8 $11) 39. Rg1 $2 {[%emt 0:00:31] [#]} (39. a3 $11 {and White has nothing to worry.}) 39... Rb8 $2 {[%emt 0:01:54]} (39... Bxa2 $1 $19 40. Qxd6 (40. Nxa2 $2 {is the wrong capture.} Rfa8 $19) 40... Bb3+ 41. Kb1 Rfa8 42. Qc7+ Kh8 43. Rd8+ Rxd8 44. Qxa5 Qd4) 40. a3 {[%emt 0:00:30] Rg6 is the strong threat.} (40. Qd4 $5 Qxd4 41. Rxd4 $14) 40... Rb3 {[%emt 0:00:50][%cal Oa5a3]} 41. Qg3 {[%emt 0:00:31] Dancing on a razor blade.} (41. Rg3 $5) 41... Rb8 {[%emt 0:00:46][%mdl 8192] Repels Qg8+. White now steadily converts the win.} (41... Raxa3+ $11 42. bxa3 Qxc3+ 43. Qxc3 Rxc3) 42. Qxd6 $18 {[%emt 0:00:31]} Rxa3+ {[%emt 0:00:09]} 43. Qxa3 {[%emt 0:00:12]} Ra8 {[%emt 0:00:28] [#]} 44. Qxa8 $1 {[%emt 0:00:25]} Bxa8 {[%emt 0:00:01]} 45. Rd7+ {[%emt 0:00:20]} Kh8 {[%emt 0:00:14]} 46. Rg6 {[%emt 0:00:44][%mdl 64] Skewer} Qf8 {[%emt 0:01:23]} 47. Rxe6 {[%emt 0:00:26]} (47. h6 $142 Bc6 48. Ra7) 47... Bf3 {[%emt 0:00:38]} 48. h6 {[%emt 0:00:55] Threatening mate with Ree7.} Bh5 {[%emt 0:00:42]} 49. Ree7 {[%emt 0:00:20] White wants to mate with Nd5.} Qa8+ {[%emt 0:00:31]} 50. Ra7 {[%emt 0:00:36]} Qh1+ {[%emt 0:00:08]} 51. Ka2 {[%emt 0:00:30]} Bg6 {[%emt 0:00:48]} 52. Rab7 {[%emt 0:00:27]} Qh2 {[%emt 0:00:30]} 53. Rec7 {[%emt 0:00:15]} Qe5 {[%emt 0:00:33]} 54. Rc8+ {[%emt 0:00:46]} Be8 {[%emt 0:00:00]} 55. Rbb8 {[%emt 0:00:24]} Kh7 {[%emt 0:00:38]} 56. Rxe8 {[%emt 0:00:12]} Qa5+ {[%emt 0:00:01]} 57. Kb1 {[%emt 0:00:24]} Kxh6 {[%emt 0:00:11]} 58. Rb5 {[%emt 0:01:01]} Qa6 {[%emt 0:00:01]} 59. Ree5 {[%emt 0:00:23]} ({Weaker is} 59. Rxf5 Qd3+ 60. Kc1 Qxf5 $11) 59... f4 {[%emt 0:00:21]} 60. Rh5+ {[%emt 0:00:16]} (60. Ne4 $142 Qg6 61. Kc2 Qg2+ 62. Kc3 Qg6 63. Rbd5 Qf7 64. Rf5 Qc7+ 65. Rc5) 60... Kg6 {[%emt 0:00:25]} 61. Ne4 {[%emt 0:00:56] White mates.} Qa4 {[%emt 0:00:34]} 62. Rhg5+ {[%emt 0:00:24]} Kf7 {[%emt 0:00:40]} 63. Rbf5+ {[%emt 0:00:17]} Ke7 {[%emt 0:00:31]} 64. Rg7+ {[%emt 0:00:19] An entertaining game by Urhegyi.   Weighted Error Value: White=0.43/Black=0.60} ({Not} 64. Rxf4 Qd1+ 65. Ka2 Qa4+ 66. Kb1 Qd1+ 67. Ka2 Qa4+ 68. Kb1 $11) 1-0